Cogmind - Beta 15 @@@ ROGUE MODE // 2025.10.06 @ 20:56:22 Player: DietSnapple Result: Self-destructed Performance ------------- Evolutions (1) 500 Regions Visited (2) 400 Robots Destroyed (20) 100 Value Destroyed (558) 558 Prototype IDs (0) 0 Alien Tech Used (0) 0 Bonus (0) 0 TOTAL SCORE: 1558 Bonus ------- None Cogmind --------- Core Integrity 236/400 Matter 300/300 Energy 100/100 System Corruption 1% Temperature Cool (0) Movement Treading (225) Ox1 Location -9/Materials Parts ------- > --- POWER (1) -------- (None) > --- PROPULSION (3) --- Advanced Treads Advanced Treads Advanced Treads > --- UTILITY (3) ------ Large Storage Unit Light Armor Plating > --- WEAPON (2) ------- Field Laser > --- INVENTORY (15) --- Advanced Treads Improved Flight Unit Field Laser Field Laser Grenade Launcher Peak State ------------ > --- POWER ------------ Ion Engine > --- PROPULSION ------- Advanced Treads Advanced Treads Advanced Treads > --- UTILITY ---------- Large Storage Unit ECM Suite > --- WEAPON ----------- Field Laser Field Laser > --- INVENTORY -------- Advanced Treads Improved Flight Unit Field Laser Field Laser Grenade Launcher Datajack [Rating: 19] Favorites ----------- Power Ion Engine Engine Ion Engine Propulsion Light Treads Treads Light Treads Wheel Wheel Utility Large Storage Unit Device ECM Suite Storage Large Storage Unit Protection Light Armor Plating Weapon Assault Rifle Energy Gun Field Laser Ballistic Gun Assault Rifle Special Melee Weapon Datajack Build | -11 -10 -9 ------- Run | Yrd Mat Mat Slots Evolved 2 | . . 2 Power . | . . . Propulsion 1 | . . 1 Utility 1 | . . 1 Weapon . | . . . Parts Attached 22 | 6 7 9 Power 2 | 1 . 1 Engine 2 | 1 . 1 Core . | . . . Reactor . | . . . Propulsion 7 | 2 2 3 Treads 5 | . 2 3 Leg . | . . . Wheel 2 | 2 . . Hover . | . . . Flight . | . . . Utility 5 | 1 3 1 Device 1 | . 1 . Storage 3 | 1 2 . Processor . | . . . Hackware . | . . . Protection 1 | . . 1 Artifact . | . . . Weapon 8 | 2 2 4 Energy Gun 4 | . 1 3 Energy Cannon . | . . . Ballistic Gun 3 | 2 . 1 Ballistic Cannon . | . . . Launcher . | . . . Special Weapon . | . . . Impact Weapon . | . . . Slashing Weapon . | . . . Piercing Weapon . | . . . Special Melee Weapon 1 | . 1 . Unidentified Prototypes . | . . . Parts Lost 7 | . 3 4 Power 2 | . 1 1 Propulsion 1 | . 1 . Utility 1 | . . 1 Weapon 3 | . 1 2 Highest Loss Streak 3 | . 2 3 To Critical Strikes . | . . . Average Backups 5 | 2 5 6 Power . | . 1 . Propulsion 1 | 1 1 1 Utility . | . . . Weapon 2 | . 2 3 Tool/Special . | . . . Unused Backups 4 | . . 4 Power . | . . . Propulsion 2 | . . 2 Utility . | . . . Weapon 2 | . . 2 Tool/Special . | . . . Average Slot Usage (%) 84 | . 87 75 Engine 4 | . 5 3 Treads 20 | . 16 32 Wheel 7 | . 10 . Device 11 | . 12 8 Storage 13 | . 14 11 Energy Gun 7 | . 2 19 Ballistic Gun 17 | . 24 . Peak Build Rating 19 | 6 7 19 Average Rating 8 | 4 6 16 On Entrance 3 | . 6 5 Naked Turns . | . . . Heaviest Build 33 | 13 33 33 Greatest Support 66 | 26 40 66 Greatest Overweight (x) 2 | . 2 1 Average Overweight (x) . | . . . Largest Inventory Capacity 15 | 8 15 15 Average Capacity 14 | 7 14 15 Most Carried 10 | 4 7 10 Average Carried 5 | 2 5 6 Final Capacity 15 | 8 15 15 Final Carried 6 | 4 6 5 Class Distribution -------------------- 100% | Mutant Dominant Class ---------------- Mutant | -10/Materials Mutant | -9/Materials Resources | -11 -10 -9 ----------- Run | Yrd Mat Mat Matter Collected 550 | 163 299 88 Remotely . | . . . Salvage Created 708 | . 469 239 Parts 44 | . 30 14 Haulers Intercepted . | . . . Recyclers Shooed . | . . . Parts Field Recycled . | . . . Retrieved Matter . | . . . Parts Self-Destructed . | . . . Prevented . | . . . Kills | -11 -10 -9 ------- Run | Yrd Mat Mat Combat Hostiles Destroyed 16 | . 11 5 Guns 16 | . 11 5 Classes Destroyed 5 | . 4 1 Worker 1 | . 1 . Operator 3 | . 2 1 Swarmer 3 | . 3 . Grunt 12 | . 8 4 Sentry 1 | . . 1 Best Kill Streak 4 | . 4 4 Combat Bots Only 4 | . 3 4 Max Kills in Single Turn 1 | . 1 1 Gunslinging . | . . . Exploded . | . . . Melee . | . . . Uniques/NPCs Destroyed . | . . . Combat | -11 -10 -9 -------- Run | Yrd Mat Mat Hostile Shots Fired 171 | . 72 99 Missed 48 | . 22 26 Hits 123 | . 50 73 Projectile 123 | . 50 73 Critical Strikes 2 | . . 2 Damage Taken 1534 | . 536 998 Core 254 | . 90 164 Absorbed by Shields . | . . . Core Remaining (%) 82 | 100 64 . Volleys Fired 61 | . 39 22 Largest 2 | . 2 2 Hottest 126 | . 60 126 Shots Fired 115 | . 77 38 Gun 115 | . 77 38 Cannon . | . . . Launcher . | . . . Special . | . . . Kinetic 71 | . 71 . Thermal 38 | . . 38 Explosive . | . . . Electromagnetic 6 | . 6 . Robot Hit Streak 11 | . 6 11 Robot Miss Streak 6 | . 6 3 Penetration Max . | . . . Secondary Targets 4 | . 1 3 Max Gunslinging Chain 1 | . 1 1 Shots Hit Robots 74 | . 48 26 Core Hits 32 | . 25 7 Critical Kills . | . . . Critical Parts Destroyed . | . . . Critical Strikes . | . . . Melee Attacks . | . . . Impact . | . . . Slashing . | . . . Piercing . | . . . Sneak Attacks . | . . . Combat Hostiles . | . . . Follow-up Attacks . | . . . Damage Inflicted 957 | . 520 437 Guns 945 | . 520 425 Cannons . | . . . Explosions . | . . . Melee . | . . . Ramming 12 | . . 12 Kinetic 453 | . 453 . Thermal 425 | . . 425 Explosive . | . . . Electromagnetic 67 | . 67 . Impact . | . . . Slashing . | . . . Piercing . | . . . Highest Corruption 1 | . . 1 Average Corruption 1 | . . 1 Corruption Purged . | . . . Corruption Blocked . | . . . Overload Shots . | . . . Overflow Damage . | . . . Projectiles . | . . . Explosions . | . . . Melee . | . . . Knockbacks . | . . . Impact . | . . . Kinetic . | . . . Secondary . | . . . Self-Inflicted Damage . | . . . Shots . | . . . Rammed 8 | . . 8 Targets Rammed 8 | . . 8 Kicked . | . . . Crushed . | . . . Highest Temperature 648 | . 15 648 Average Temperature 277 | . 5 325 Received Heat Transfer 666 | . 240 426 Effects 12 | . . 12 Shutdowns 2 | . . 2 Energy Bleed 2 | . . 2 Interference 2 | . . 2 Short Circuit 3 | . . 3 Damage (minor) 2 | . . 2 Damage (core) 1 | . . 1 Siege Activations . | . . . Martial Activations . | . . . Shielding Activations . | . . . Robots Disrupted . | . . . Combat Hostiles . | . . . Robots Corrupted . | . . . Combat Hostiles . | . . . Parts Fried . | . . . Impact Corruptions . | . . . Robots Melted . | . . . Combat Hostiles . | . . . Parts Melted . | . . . Heat Transferred 925 | . . 925 Parts Sabotaged . | . . . Parts Stolen . | . . . Parts Stripped . | . . . Power Chain Reactions . | . . . Alert | -11 -10 -9 ------- Run | Yrd Mat Mat Maximum Alert Level . | . . . Low Security (%) 100 | 100 100 100 Level 1 . | . . . Level 2 . | . . . Level 3 . | . . . Level 4 . | . . . Level 5 . | . . . High Security . | . . . Max Security . | . . . Peak Influence 111 | . 111 75 Initial 13 | . . 13 Average 24 | . 29 16 Influence Increases 422 | . 307 115 Destroy 0b10 Robot/C 320 | . 220 100 Destroy 0b10 Robot/NC 20 | . 15 5 Destroy Leader 50 | . 40 10 Successful Hack 16 | . 16 . Destroy Structure 1 | . 1 . Lose Combat Pursuer 15 | . 15 . Influence Decreases 407 | . 274 133 Entered New Map 20 | . . 20 Time Decay 317 | . 244 73 Lost Part 70 | . 30 40 Squads Dispatched 4 | . 3 1 Investigation 1 | . 1 . Extermination . | . . . Reinforcement 3 | . 2 1 Assault . | . . . Garrison . | . . . Intercept . | . . . Searches Triggered . | . . . Construction Impeded . | . . . Haulers Reinforced . | . . . Active Scanning Responses . | . . . Cargo Convoy Interrupts . | . . . Stealth | -11 -10 -9 --------- Run | Yrd Mat Mat Distress Signals 3 | . . 3 Communications Jammed . | . . . Distress Signals . | . . . Times Spotted 44 | . 28 16 Peak Tracking Total 10 | . 5 10 Tactical Retreats 3 | . 3 . Traps | -11 -10 -9 ------- Run | Yrd Mat Mat Traps Triggered 2 | . 1 1 Indirectly . | . . . Trap Hack Attempts . | . . . Triggered . | . . . Disarmed . | . . . Reprogrammed . | . . . Reused . | . . . Traps Extracted . | . . . Installed . | . . . Triggered . | . . . Machines | -11 -10 -9 ---------- Run | Yrd Mat Mat Machines Disabled . | . . . Max in Single Turn . | . . . Machines Repaired . | . . . Machines Dismantled . | . . . Machines Sabotaged . | . . . Overloaded Fab Kills . | . . . Hacking | -11 -10 -9 --------- Run | Yrd Mat Mat Machines Accessed 1 | . 1 . Terminals 1 | . 1 . Fabricators . | . . . Repair Stations . | . . . Recycling Units . | . . . Scanalyzers . | . . . Garrison Access . | . . . Total Hacks 6 | . 6 . Successful 3 | . 3 . Failed 3 | . 3 . Catastrophic . | . . . Database Lockouts . | . . . Manual 4 | . 4 . Terminals 6 | . 6 . Fabricators . | . . . Repair Stations . | . . . Recycling Units . | . . . Scanalyzers . | . . . Garrison Access . | . . . Terminal Hacks 1 | . 1 . Hauler Manifests 1 | . 1 . Fabricator Hacks . | . . . Repair Station Hacks . | . . . Recycling Unit Hacks . | . . . Scanalyzer . | . . . Garrison Access Hacks . | . . . Unauthorized Hacks 2 | . 2 . Terminals 2 | . 2 . Botnet 1 | . 1 . Operators 1 | . 1 . Fabricators . | . . . Repair Stations . | . . . Recycling Units . | . . . Scanalyzers . | . . . Garrison Access . | . . . Data Cores Recovered . | . . . Used . | . . . Hacking Detections 1 | . 1 . Full Trace Events 1 | . 1 . Feedback Events . | . . . Feedback Blocked . | . . . Robot Schematics Acquired . | . . . Robots Built . | . . . Authchips . | . . . Time . | . . . Total Robot Build Rating . | . . . Part Schematics Acquired . | . . . Parts Built . | . . . Authchips . | . . . Time . | . . . Total Part Build Rating . | . . . Parts Repaired . | . . . Time . | . . . Parts Recycled . | . . . Recycled Matter . | . . . Retrieved Matter . | . . . Retrieved Components . | . . . Parts Scanalyzed . | . . . Part Schematics Acquired . | . . . Parts Damaged . | . . . Bothacking | -11 -10 -9 ------------ Run | Yrd Mat Mat Used RIF Installer . | . . . Robots Hacked . | . . . Non-combat . | . . . Combat . | . . . Robot Hacks Applied . | . . . Relay Couplers Released . | . . . Fabnet Peak Effective % . | . . . Robots Rewired . | . . . Allies Hacked . | . . . Hacks Repelled . | . . . Allies | -11 -10 -9 -------- Run | Yrd Mat Mat Total Allies . | . . . Largest Group . | . . . Highest-Rated Group . | . . . Highest-Rated Ally . | . . . Total Orders . | . . . Ally Attacks . | . . . Total Damage . | . . . Kills . | . . . Allies Corrupted . | . . . Allies Melted . | . . . Intel | -11 -10 -9 ------- Run | Yrd Mat Mat Active Infowar (turns) 312 | . 312 . ECM 312 | . 312 . Robot Analysis Total . | . . . Derelict Logs Recovered . | . . . Drone Launches . | . . . Drone Recoveries . | . . . Exploration | -11 -10 -9 ------------- Run | Yrd Mat Mat Turns Passed 1342 | 93 914 335 Spaces Moved 776 | 93 560 123 Core 7 | 7 . . Treads 443 | . 320 123 Legs . | . . . Wheels 326 | 86 240 . Hover . | . . . Flight . | . . . Fastest Speed 50 | 50 90 145 Average Speed 132 | 86 135 152 Slowest Speed 225 | 90 160 225 Overloaded Moves . | . . . Propulsion Burnouts . | . . . Robots Hopped . | . . . Potential Cave-ins . | . . . Cave-ins Triggered . | . . . Exploration Rate (%) 30 | 4 75 12 Regions Visited 2 Branch Regions . Pre-discovered Areas . | . . . Known Exits Taken . | . . . Unknown Exits Taken 2 | 1 1 . Scrap Searched . | . . . Spaces Dug . | . . . Terrain Destroyed . | . . . Melee . | . . . Projectile . | . . . AOE . | . . . Terrain Rammed . | . . . Walls Destroyed . | . . . Machines Disabled . | . . . Actions | -11 -10 -9 --------- Run | Yrd Mat Mat Total 968 | 102 643 223 Wait 76 | . 30 46 Move 774 | 92 559 123 Hop . | . . . Pick Up 14 | 4 4 6 Fast Attach 9 | 6 1 2 Attach 8 | . 3 5 Detach 4 | . 2 2 Swap 6 | . 3 3 Drop 8 | . 2 6 Fire 61 | . 39 22 Melee . | . . . Ram . | . . . Kick . | . . . Crush 8 | . . 8 Escape Stasis . | . . . Rewire . | . . . Trap . | . . . Miscellaneous . | . . . Route ------- -11/Scrapyard -10/Materials (discovered 4 exits: [*Mat x2] / [*Min] / [*Sub]) -9/Materials History --------- Turn | Location | Event 8 | -11/Scrapyard | Discovered new exit (range 16) 94 | -11/Scrapyard | Entered Materials 154 | -10/Materials | Discovered new exit (range 8) 236 | -10/Materials | Discovered new exit (range 12) 302 | -10/Materials | Build established: Mutant 309 | -10/Materials | Discovered new exit (range 12) 464 | -10/Materials | Discovered new exit (range 10) 1008 | -10/Materials | Entered another Materials area 1008 | -9/Materials | Evolved 2 slots: Propulsion x1, Utility x1 1300 | -9/Materials | Lost 3 parts (1p1u1w) 1343 | -9/Materials | Self-destructed Last Messages --------------- 01316_ K-01 Serf collects debris. 01318_ G-34 Mercenary overheating. 01318_ K-01 Serf collects debris. 01318_ R-06 Scavenger collects Ion Engine. 01319_ K-01 Serf collects debris. 01326_ R-06 Scavenger collects Aluminum Leg. 01327_ Acquired 5 matter. 01327_ K-01 Serf collects debris. 01327_ K-01 Serf destroyed. 01328_ Acquired 3 matter. 01329_ R-06 Scavenger collects Ion Engine. 01330_ C-30 ARC bursts open, deploying its payload. 01330_ G-47 Trooper unfolds itself. 01330_ G-34 Mercenary unfolds itself. 01330_ Datajack destroyed. 01333_ R-06 Scavenger collects Sml. Matter Pod. 01335_ Acquired Lgt. Armor Plating. 01336_ Slammed into Y-45 Defender. 01339_ Acquired 5 matter. 01341_ Slammed into Y-45 Defender. Map ----- +----------------------------------------------------+ | ?????????????????????????????????????????????? | | ?????????????????????????????????????????????? | | ?????????????????????????????????????????????? | | ?????????????????????????????????????????????? | | ?????????????????????????????????????????????? | | ?????????????????????????????????????????????? | | ?????????????????????????????????????????????? | | ?????????????????????????????????????????????? | | ???????????????????????????? ? ??????????????? | | ??????????????????????????? ???????????????? | | ?????????????????????????? ????????????????? | | ?????????????????????????? ????????????????? | | ?????????????????????????? ?????????????????? | | ?????????????????????????/ ??????????????????? | | ?????????????????????????%#??????????????????? | | ??????????????????#######+#####??????????????? | | ??????????????????# "T"[%= #???? ?????????? | | ??????????????????# #?? ????????? | | ??????????????????# g!!! # ????????? | | ??????????????????# % !!! / ????????? | | ??????????????????# g!! #??????????????? | | ??????????????????# % #??????????????? | | ??????????????????# =g #??????????????? | | ??????????????????###/###+#####??????????????? | | ??????############?#%%Y=% #??????????????????? | | ??????# #%@[##+#??????????????????? | | ??????# # % #?????????????????????? | | ??????# + ^#?????????????????????? | | ??????# # #?????????????????????? | | ??????# # #?????????????????????? | | ??????############## #?????????????????????? | | ????????????# # #?????????????????????? | | ????????????# # #?????????????????????? | | ????????????# # #?????????????????????? | | ????????????# + #?????????????????????? | | ????????????# # #?????????????????????? | | ????????????# # #?????????????????????? | | ????????????######## ########??????????????? | | ????????????# # # #??????????????? | | ????????????# """ # # #??????????????? | | ????????????# """ # # """ #??????????????? | | ????????????# """ + + """ #??????????????? | | ??########### # # """ #??????????????? | | ??# # [ |# # #??????????????? | | ??# [ ! #+###### ########??????????????? | | ??# # #?????????????????????? | | ??# """ """ + #?????????????????????? | | ??? """ """ # #?????????????????????? | | ??? """ """ # ########?????????????????????? | | ???? # #????????????????????????????? | +----------------------------------------------------+ Best States ------------- Heat Dissipation 28 Energy Generation 10 Energy Capacity 250 Matter Stores 300 Matter Capacity 300 Sight Range 16 Terrain Scan Density 10 ECM Strength 1 Armor Coverage 150 Evasion (%) 44 Recoil Reduction 3 Item Schematics ----------------- None Robot Schematics ------------------ None Fabricated ------------ Nothing Repaired ---------- Nothing Alien Tech Used ----------------- None Achievements -------------- None Challenges ------------ None Game ------ Seed MassCentriumDrillbomb Manual? 0 Play Time 00:09:37 Cumulative 16.2 hours Start 2025.10.06 @ 20:49:04 End 2025.10.06 @ 20:56:22 Sessions 1 Manual Loads 0 Difficulty Rogue Special Mode None Game No. 48 Rogue 41 Adventurer 7 Explorer 0 Win Type - Total 0 Types 0/0/0/0/0/0/0/0/0/0 Lore% 3 Gallery% 17 Achievement% 17 Wizard Run 0 Options --------- Layout 1 ASCII 0 Keyboard 1 Movement Vi Keybinds 0 Fullscreen 1 Font 24/Smallcaps Map View 76x35 Zoom Use 0% Tactical HUD 1 Map Filters NONE Filters NONE Steam 1 RUN: 19d0bc9b-5e8a-4b04-afc4-ad35701e8429